Cogmind - Beta 15 @@@ ROGUE MODE // 2025.07.01 @ 07:08:21 Player: CheifClapdad Result: Destroyed by Y-45 Defender with Beam Rifle Performance ------------- Evolutions (0) 0 Regions Visited (3) 600 Robots Destroyed (22) 110 Value Destroyed (369) 369 Prototype IDs (0) 0 Alien Tech Used (0) 0 Bonus (0) 0 TOTAL SCORE: 1079 Bonus ------- None Cogmind --------- Core Integrity 0/250 Matter 285/300 Energy 125/125 System Corruption 0% Temperature Cool (36) Movement Walking (190) Ox1 Location -8/Recycling Parts ------- > --- POWER (1) -------- Light Ion Engine > --- PROPULSION (2) --- Aluminum Leg Aluminum Leg > --- UTILITY (2) ------ Large Storage Unit > --- WEAPON (2) ------- Small Laser > --- INVENTORY (15) --- Ion Engine Light Ion Engine Light Treads Aluminum Leg Aluminum Leg Compact Wheel Compact Wheel Compact Wheel Compact Wheel Compact Wheel Compact Wheel Compact Wheel Large Storage Unit Tractor Beam Grenade Launcher Peak State ------------ > --- POWER ------------ Ion Engine > --- PROPULSION ------- Light Treads Wheel > --- UTILITY ---------- Large Storage Unit Seismic Detector > --- WEAPON ----------- Small Laser Assault Rifle > --- INVENTORY -------- Ion Engine Light Ion Engine Light Treads Wheel Large Storage Unit Grenade Launcher [Rating: 7] Favorites ----------- Power Light Ion Engine Engine Light Ion Engine Propulsion Aluminum Leg Treads Light Treads Leg Aluminum Leg Wheel Compact Wheel Utility Large Storage Unit Device Seismic Detector Storage Large Storage Unit Weapon Small Laser Energy Gun Small Laser Ballistic Gun Assault Rifle Launcher Grenade Launcher Build | -11 -10 -10 -8 ------- Run | Yrd Mat Sub Rec Slots Evolved . | . . . . Power . | . . . . Propulsion . | . . . . Utility . | . . . . Weapon . | . . . . Parts Attached 22 | 7 3 5 7 Power 2 | 1 . . 1 Engine 2 | 1 . . 1 Core . | . . . . Reactor . | . . . . Propulsion 11 | 2 . 5 4 Treads 2 | 1 . 1 . Leg 3 | . . 1 2 Wheel 6 | 1 . 3 2 Hover . | . . . . Flight . | . . . . Utility 3 | 1 2 . . Device 1 | . 1 . . Storage 2 | 1 1 . . Processor . | . . . . Hackware . | . . . . Protection . | . . . . Artifact . | . . . . Weapon 6 | 3 1 . 2 Energy Gun 4 | 2 . . 2 Energy Cannon . | . . . . Ballistic Gun 1 | 1 . . . Ballistic Cannon . | . . . . Launcher 1 | . 1 . . Special Weapon . | . . . . Impact Weapon . | . . . . Slashing Weapon . | . . . . Piercing Weapon . | . . . . Special Melee Weapon . | . . . . Unidentified Prototypes . | . . . . Parts Lost 10 | . 1 8 1 Power 1 | . . 1 . Propulsion 5 | . . 5 . Utility 1 | . 1 . . Weapon 3 | . . 2 1 Highest Loss Streak 8 | . 1 8 1 To Critical Strikes . | . . . . Average Backups 9 | 2 8 13 11 Power 1 | . 2 3 2 Propulsion 5 | 1 4 6 6 Utility 1 | . . 1 1 Weapon 1 | . 1 3 1 Tool/Special . | . . . . Unused Backups 12 | . 1 . 11 Power 2 | . . . 2 Propulsion 8 | . 1 . 7 Utility 2 | . . . 2 Weapon . | . . . . Tool/Special . | . . . . Average Slot Usage (%) 81 | . 87 56 78 Engine 13 | . 14 9 14 Treads 5 | . 14 9 . Leg 8 | . . . 14 Wheel 13 | . 14 14 13 Storage 14 | . 14 14 14 Energy Gun 18 | . 14 4 21 Ballistic Gun 5 | . 13 4 . Peak Build Rating 7 | 6 7 7 7 Average Rating 6 | 4 6 4 6 On Entrance 4 | . 6 7 4 Naked Turns . | . . . . Heaviest Build 29 | 14 29 28 25 Greatest Support 32 | 20 20 20 32 Greatest Overweight (x) 8 | . 2 8 1 Average Overweight (x) . | . . 1 . Largest Inventory Capacity 15 | 8 15 15 15 Average Capacity 13 | 7 13 15 15 Most Carried 15 | 3 15 15 15 Average Carried 9 | 2 9 13 11 Final Capacity 15 | 8 15 15 15 Final Carried 15 | 3 15 10 15 Class Distribution -------------------- 59% | Mutant 40% | Scavenger-Mutant Dominant Class ---------------- Mutant | -10/Materials Mutant | -10/Subcaves Scavenger-Mutant | -8/Recycling Resources | -11 -10 -10 -8 ----------- Run | Yrd Mat Sub Rec Matter Collected 459 | 160 174 . 125 Remotely . | . . . . Salvage Created 1075 | . 256 . 819 Parts 47 | . 17 . 30 Haulers Intercepted . | . . . . Recyclers Shooed 6 | . . . 6 Parts Field Recycled . | . . . . Retrieved Matter . | . . . . Parts Self-Destructed 1 | . . 1 . Prevented . | . . . . Kills | -11 -10 -10 -8 ------- Run | Yrd Mat Sub Rec Combat Hostiles Destroyed 10 | . 9 . 1 Guns 7 | . 6 . 1 AOE 3 | . 3 . . Classes Destroyed 5 | . 3 . 2 Worker 1 | . 1 . . Recycler 11 | . . . 11 Swarmer 3 | . 3 . . Grunt 6 | . 6 . . Sentry 1 | . . . 1 Best Kill Streak 6 | . 6 . 5 Combat Bots Only 5 | . 5 . 1 Max Kills in Single Turn 2 | . 2 . 1 Gunslinging . | . . . . Exploded 2 | . 2 . . Melee . | . . . . Uniques/NPCs Destroyed . | . . . . Combat | -11 -10 -10 -8 -------- Run | Yrd Mat Sub Rec Hostile Shots Fired 158 | . 40 104 14 Missed 51 | . 11 37 3 Hits 107 | . 29 67 11 Projectile 107 | . 29 67 11 Critical Strikes 1 | . 1 . . Damage Taken 1024 | . 375 489 160 Core 257 | . 52 134 71 Absorbed by Shields . | . . . . Core Remaining (%) 100 | 100 . . . Volleys Fired 66 | . 21 . 45 Largest 2 | . 2 . 2 Hottest 80 | . 70 . 80 Shots Fired 130 | . 42 . 88 Gun 127 | . 39 . 88 Cannon . | . . . . Launcher 3 | . 3 . . Special . | . . . . Kinetic 18 | . 18 . . Thermal 109 | . 21 . 88 Explosive 3 | . 3 . . Electromagnetic . | . . . . Robot Hit Streak 19 | . 7 . 19 Robot Miss Streak 4 | . 2 . 4 Penetration Max . | . . . . Secondary Targets . | . . . . Shots Hit Robots 82 | . 27 . 55 Core Hits 41 | . 16 . 25 Critical Kills . | . . . . Critical Parts Destroyed . | . . . . Critical Strikes . | . . . . Melee Attacks . | . . . . Impact . | . . . . Slashing . | . . . . Piercing . | . . . . Sneak Attacks . | . . . . Combat Hostiles . | . . . . Follow-up Attacks . | . . . . Damage Inflicted 1172 | . 556 . 616 Guns 926 | . 310 . 616 Cannons . | . . . . Explosions 246 | . 246 . . Melee . | . . . . Ramming . | . . . . Kinetic 155 | . 155 . . Thermal 771 | . 155 . 616 Explosive 246 | . 246 . . Electromagnetic . | . . . . Impact . | . . . . Slashing . | . . . . Piercing . | . . . . Highest Corruption . | . . . . Average Corruption . | . . . . Corruption Purged . | . . . . Corruption Blocked . | . . . . Overload Shots . | . . . . Overflow Damage 4 | . 4 . . Projectiles . | . . . . Explosions 4 | . 4 . . Melee . | . . . . Knockbacks . | . . . . Impact . | . . . . Kinetic . | . . . . Secondary . | . . . . Self-Inflicted Damage 67 | . 67 . . Shots 2 | . 2 . . Rammed . | . . . . Targets Rammed . | . . . . Kicked . | . . . . Crushed . | . . . . Highest Temperature 140 | . 78 . 140 Average Temperature 44 | . 41 . 45 Received Heat Transfer 405 | . 129 222 54 Siege Activations . | . . . . Martial Activations . | . . . . Shielding Activations . | . . . . Robots Disrupted . | . . . . Combat Hostiles . | . . . . Robots Corrupted . | . . . . Combat Hostiles . | . . . . Parts Fried . | . . . . Impact Corruptions . | . . . . Robots Melted . | . . . . Combat Hostiles . | . . . . Parts Melted 3 | . . . 3 Heat Transferred 1750 | . 350 . 1400 Parts Sabotaged . | . . . . Parts Stolen . | . . . . Parts Stripped . | . . . . Power Chain Reactions . | . . . . Alert | -11 -10 -10 -8 ------- Run | Yrd Mat Sub Rec Maximum Alert Level 1 | . 1 . . Low Security (%) 88 | 100 68 . 100 Level 1 11 | . 31 . . Level 2 . | . . . . Level 3 . | . . . . Level 4 . | . . . . Level 5 . | . . . . High Security . | . . . . Max Security . | . . . . Peak Influence 265 | . 265 . 30 Initial 5 | . . . 5 Average 47 | . 130 . 3 Influence Increases 455 | . 335 15 105 Destroy 0b10 Robot/C 200 | . 180 . 20 Destroy 0b10 Robot/NC 60 | . 5 . 55 Destroy Leader 40 | . 40 . . Select Force Hacks 60 | . 30 . 30 Disable Machine 15 | . 15 . . Destroy Structure 5 | . 5 . . Lose Combat Pursuer 75 | . 60 15 . Influence Decreases 455 | . 166 172 117 Entered New Map 89 | . . 82 7 Time Decay 272 | . 156 10 106 Lost Part 94 | . 10 80 4 Squads Dispatched 2 | . 2 . . Investigation 1 | . 1 . . Extermination . | . . . . Reinforcement 1 | . 1 . . Assault . | . . . . Garrison . | . . . . Intercept . | . . . . Searches Triggered . | . . . . Construction Impeded . | . . . . Haulers Reinforced . | . . . . Active Scanning Responses . | . . . . Cargo Convoy Interrupts . | . . . . Stealth | -11 -10 -10 -8 --------- Run | Yrd Mat Sub Rec Distress Signals . | . . . . Communications Jammed . | . . . . Distress Signals . | . . . . Times Spotted 22 | . 13 6 3 Peak Tracking Total 6 | . 6 6 3 Tactical Retreats 2 | . 1 1 . Traps | -11 -10 -10 -8 ------- Run | Yrd Mat Sub Rec Traps Triggered . | . . . . Indirectly . | . . . . Trap Hack Attempts . | . . . . Triggered . | . . . . Disarmed . | . . . . Reprogrammed . | . . . . Reused . | . . . . Traps Extracted . | . . . . Installed . | . . . . Triggered . | . . . . Machines | -11 -10 -10 -8 ---------- Run | Yrd Mat Sub Rec Machines Disabled 1 | . 1 . . Max in Single Turn 1 | . 1 . . Machines Repaired . | . . . . Machines Dismantled . | . . . . Machines Sabotaged . | . . . . Overloaded Fab Kills . | . . . . Hacking | -11 -10 -10 -8 --------- Run | Yrd Mat Sub Rec Machines Accessed 2 | . 1 . 1 Terminals . | . . . . Fabricators . | . . . . Repair Stations . | . . . . Recycling Units 2 | . 1 . 1 Scanalyzers . | . . . . Garrison Access . | . . . . Total Hacks 4 | . 3 . 1 Successful 2 | . 1 . 1 Failed 2 | . 2 . . Catastrophic . | . . . . Database Lockouts . | . . . . Manual 4 | . 3 . 1 Terminals . | . . . . Fabricators . | . . . . Repair Stations . | . . . . Recycling Units 4 | . 3 . 1 Scanalyzers . | . . . . Garrison Access . | . . . . Terminal Hacks . | . . . . Fabricator Hacks . | . . . . Repair Station Hacks . | . . . . Recycling Unit Hacks . | . . . . Scanalyzer . | . . . . Garrison Access Hacks . | . . . . Unauthorized Hacks 2 | . 1 . 1 Terminals . | . . . . Fabricators . | . . . . Repair Stations . | . . . . Recycling Units 2 | . 1 . 1 Tunnel 2 | . 1 . 1 Scanalyzers . | . . . . Garrison Access . | . . . . Data Cores Recovered . | . . . . Used . | . . . . Hacking Detections . | . . . . Full Trace Events . | . . . . Feedback Events . | . . . . Feedback Blocked . | . . . . Robot Schematics Acquired . | . . . . Robots Built . | . . . . Authchips . | . . . . Time . | . . . . Total Robot Build Rating . | . . . . Part Schematics Acquired . | . . . . Parts Built . | . . . . Authchips . | . . . . Time . | . . . . Total Part Build Rating . | . . . . Parts Repaired . | . . . . Time . | . . . . Parts Recycled . | . . . . Recycled Matter . | . . . . Retrieved Matter . | . . . . Retrieved Components . | . . . . Parts Scanalyzed . | . . . . Part Schematics Acquired . | . . . . Parts Damaged . | . . . . Bothacking | -11 -10 -10 -8 ------------ Run | Yrd Mat Sub Rec Used RIF Installer . | . . . . Robots Hacked . | . . . . Non-combat . | . . . . Combat . | . . . . Robot Hacks Applied . | . . . . Relay Couplers Released . | . . . . Fabnet Peak Effective % . | . . . . Robots Rewired . | . . . . Allies Hacked . | . . . . Hacks Repelled . | . . . . Allies | -11 -10 -10 -8 -------- Run | Yrd Mat Sub Rec Total Allies . | . . . . Largest Group . | . . . . Highest-Rated Group . | . . . . Highest-Rated Ally . | . . . . Total Orders . | . . . . Ally Attacks . | . . . . Total Damage . | . . . . Kills . | . . . . Allies Corrupted . | . . . . Allies Melted . | . . . . Intel | -11 -10 -10 -8 ------- Run | Yrd Mat Sub Rec Active Infowar (turns) 70 | . 70 . . Seismic 70 | . 70 . . Robot Analysis Total . | . . . . Derelict Logs Recovered . | . . . . Drone Launches . | . . . . Drone Recoveries . | . . . . Exploration | -11 -10 -10 -8 ------------- Run | Yrd Mat Sub Rec Turns Passed 1249 | 166 424 26 633 Spaces Moved 642 | 102 170 16 354 Core 4 | 3 . 1 . Treads 227 | 91 133 3 . Legs 103 | . . . 103 Wheels 308 | 8 37 12 251 Hover . | . . . . Flight . | . . . . Fastest Speed 50 | 50 110 80 100 Average Speed 148 | 150 193 138 126 Slowest Speed 450 | 160 240 450 190 Overloaded Moves . | . . . . Propulsion Burnouts . | . . . . Robots Hopped . | . . . . Potential Cave-ins . | . . . . Cave-ins Triggered . | . . . . Exploration Rate (%) 18 | 4 13 2 56 Regions Visited 3 Branch Regions 2 Pre-discovered Areas 2 | . 1 . 1 Known Exits Taken . | . . . . Unknown Exits Taken 3 | 1 1 1 . Scrap Searched . | . . . . Spaces Dug . | . . . . Terrain Destroyed 5 | . 5 . . Melee . | . . . . Projectile . | . . . . AOE 5 | . 5 . . Terrain Rammed . | . . . . Walls Destroyed . | . . . . Machines Disabled . | . . . . Actions | -11 -10 -10 -8 --------- Run | Yrd Mat Sub Rec Total 809 | 112 225 20 452 Wait 50 | . 15 . 35 Move 639 | 101 169 15 354 Hop . | . . . . Pick Up 26 | 3 14 . 9 Fast Attach 8 | 7 1 . . Attach 9 | . 1 5 3 Detach . | . . . . Swap 7 | . 2 . 5 Drop 4 | 1 2 . 1 Fire 66 | . 21 . 45 Melee . | . . . . Ram . | . . . . Kick . | . . . . Crush . | . . . . Escape Stasis . | . . . . Rewire . | . . . . Trap . | . . . . Miscellaneous . | . . . . Route ------- -11/Scrapyard -10/Materials (discovered 2 exits: [*Min] / [*Sub]) -10/Subcaves -8/Recycling History --------- Turn | Location | Event 9 | -11/Scrapyard | Discovered new exit (range 15) 167 | -11/Scrapyard | Entered Materials 266 | -10/Materials | Discovered new exit (range 16) 313 | -10/Materials | Build established: Mutant 369 | -10/Materials | Discovered new exit (range 12) 591 | -10/Materials | Entered Subcaves 591 | -10/Subcaves | Discovered new exit (range 14) 607 | -10/Subcaves | Core integrity fell below 50% 617 | -10/Subcaves | Entered Recycling 643 | -8/Recycling | Lost 8 parts (1p5n2w) 1037 | -8/Recycling | Build established: Scavenger-Mutant 1203 | -8/Recycling | Core integrity fell below 20% 1250 | -8/Recycling | Destroyed by Y-45 Defender with Beam Rifle Last Messages --------------- 00952_ Acquired Tractor Beam. 00952_ R-06 Scavenger collects Lgt. Ion Engine. 00954_ Acquired Com. Wheel. 00956_ R-06 Scavenger collects Lgt. Ion Engine. 00968_ R-06 Scavenger collects Sml. Storage Unit. 01059_ Connecting with Recycling Unit... 01059_ Current location identified: Recycling >>Force(Tunnel) DISCOVERED[-7/Factory] 01181_ R-06 Scavenger destroyed. 01186_ Dropped Com. Wheel. 01186_ Acquired Com. Wheel. 01190_ Y-45 Defender springs to life. 01212_ Lgt. Armor Plating melted. 01212_ Heat Sink melted. 01212_ Y-45 Defender destroyed. 01219_ R-06 Scavenger collects Beam Rifle. 01245_ Sml. Laser destroyed. Map ----- +----------------------------------------------------+ | ?????# """ #??????# ## #? | | ?????# #??????#############?# #? | | ?????# #????????????????????# #? | | ?????# #????????????????????# #? | | ?????# ###????????????????????# #? | | ???### #??????????????????????####### #? | | ???# #????????????????????????????# #? | | ???# ##########????????????????????????????# #? | | ???# #?????????????????????????????????????# #? | | ???# #???????????????????????????????????### ## | | ???# ###########?????????????????????????# | | ???# # ????????????????????? | | ???# # """?????#+##+#?????? T | | ???# # """"?????# #????? | | ???# # """""????# #?????# ########## | | ???# + """""????# #????????????????## # | | ???# # """ #???# #?????????????????# # | | ?### # #???# #?????????????????# # | | ?#!! + #???# #?????????????????# # | | ?#!! ###########???# ##????????????????# # | | ?#!! #?????????###?# #????????????????# # | | ?### ######?####T### ##########+##?????# # | | ???# ##===#?# ???? | | ???# ##===### Y ???? # | | ???# % Y ????????? | | ???# #########+#######@#####"Y"#??????????????? | | ???# #??# !% ! ###??????????????????????? | | ???# #??# #????????????????????????? | | ???# #??# #????????????????????????? | | ???# #??# ! ! #????????????????????????? | | ???# #??# !#????????????????????????? | | ???# #??#! #????????????????????????? | | ???# #### ! #????????????????????????? | | ???# + #????????????????????????? | | ???######! #????????????????????????? | | ????????# ! #????????????????????????? | | ????????# ! ! #????????????????????????? | | ????????# !! #????????????????????????? | | ????????##############????????????????????????? | | ??????????????????????????????????????????????? | | ??????????????????????????????????????????????? | | | | | | | | | | | | | | | | | | | +----------------------------------------------------+ Best States ------------- Heat Dissipation 25 Energy Generation 10 Energy Capacity 250 Matter Stores 300 Matter Capacity 300 Sight Range 16 Terrain Scan Density 10 Evasion (%) 44 Recoil Reduction 1 Item Schematics ----------------- None Robot Schematics ------------------ None Fabricated ------------ Nothing Repaired ---------- Nothing Alien Tech Used ----------------- None Achievements -------------- None Challenges ------------ None Game ------ Seed HackingJammingStripper Manual? 0 Play Time 00:09:00 Cumulative 102.3 hours Start 2025.07.01 @ 07:01:48 End 2025.07.01 @ 07:08:21 Sessions 1 Manual Loads 0 Difficulty Rogue Special Mode None Game No. 141 Rogue 141 Adventurer 0 Explorer 0 Win Type - Total 1 Types 1/0/0/0/0/0/0/0/0/0 Lore% 40 Gallery% 52 Achievement% 47 Wizard Run 0 Options --------- Layout 1 ASCII 0 Keyboard 0 Movement Arrows Keybinds 0 Fullscreen 1 Font 24/Smallcaps Map View 50x35 Zoom Use 0% Tactical HUD 1 Map Filters NONE Filters NONE Steam X RUN: 57d350c5-9568-4008-8f6c-e48de2f0233c